bitfinex-derivatives/quotes_BTCF0:USTF0_20240910
["timestamp","ask_amount","ask_price","bid_price","bid_amount"]
[1725938231054,0.224132,56676.0,56675.0,0.006]
[1725938231563,0.2412998,56676.0,56675.0,0.006]
[1725938231759,0.3295158,56676.0,56675.0,0.002]
[1725938232064,0.3295158,56676.0,56675.0,0.005]
[1725938232563,0.088222,56672.0,56671.0,0.0004]
[1725938232760,0.178222,56672.0,56671.0,0.0004]
[1725938233063,0.178622,56672.0,56671.0,0.0004]
[1725938233650,0.178622,56672.0,56671.0,0.0054]
[1725938234062,0.266844,56672.0,56671.0,0.0054]
[1725938234657,0.266844,56672.0,56671.0,0.0104]
[1725938234963,0.178622,56672.0,56671.0,0.0104]
[1725938240369,0.266844,56672.0,56671.0,0.0104]
[1725938240666,0.178622,56672.0,56671.0,0.0104]
[1725938241968,0.266844,56672.0,56671.0,0.0104]
[1725938246370,0.266844,56672.0,56663.0,0.0041]
[1725938246371,0.17647,56664.0,56663.0,0.0041]
[1725938246573,0.17647,56664.0,56661.0,0.3218]
[1725938246574,0.19533918,56664.0,56661.0,0.0016]
[1725938246775,0.088245,56657.0,56655.0,0.140048]
[1725938246972,0.178645,56657.0,56656.0,0.01104705]
[1725938247174,0.178245,56657.0,56656.0,0.002]
[1725938247779,0.178245,56657.0,56656.0,0.02189787]
[1725938248377,0.178245,56657.0,56656.0,0.03289787]
[1725938249681,0.088258,56649.0,56645.0,0.12751424]
[1725938249872,0.088266,56644.0,56641.0,0.05289182]
[1725938250078,0.088266,56644.0,56633.0,0.0041]
[1725938250079,0.0908,56642.0,56639.0,0.05289182]
[1725938250279,0.0908,56640.0,56639.0,0.05289182]
[1725938250583,0.088277,56637.0,56636.0,0.05289182]
[1725938250889,0.089077,56637.0,56636.0,0.05289182]
[1725938251579,0.08828,56635.0,56634.0,0.05289182]
[1725938251783,0.08908,56635.0,56633.0,0.05289182]
[1725938251991,0.089081,56634.0,56633.0,0.05289182]
[1725938252179,0.088281,56634.0,56633.0,0.05289182]
[1725938252375,0.088283,56633.0,56631.0,0.11045259]
[1725938252587,0.088283,56633.0,56632.0,0.05268005]
[1725938253480,0.088284,56632.0,56631.0,0.00904377]
[1725938253678,0.089084,56632.0,56630.0,0.05268005]
[1725938253986,0.0008,56631.0,56630.0,0.05268005]
[1725938254183,0.089084,56632.0,56630.0,0.06132121]
[1725938254684,0.089084,56632.0,56631.0,0.09]
[1725938255186,0.090084,56632.0,56631.0,0.09]
[1725938255579,0.091084,56632.0,56631.0,0.09]
[1725938256287,0.088286,56631.0,56630.0,0.01864116]
[1725938256485,0.088286,56631.0,56630.0,0.01064116]
[1725938256694,0.089086,56631.0,56630.0,0.01064116]
[1725938257080,0.089086,56631.0,56630.0,0.00864116]
[1725938257289,0.089086,56631.0,56629.0,0.07819818]
[1725938257484,0.090086,56631.0,56630.0,0.014]
[1725938257789,0.089286,56631.0,56630.0,0.02298467]
[1725938257983,0.090286,56631.0,56630.0,0.03598467]
[1725938258387,0.089286,56631.0,56630.0,0.02298467]
[1725938258584,0.090286,56631.0,56630.0,0.02298467]
[1725938258977,0.089286,56631.0,56630.0,0.02298467]
[1725938259182,0.090286,56631.0,56630.0,0.03598467]
[1725938259388,0.089286,56631.0,56630.0,0.02198467]
[1725938259585,0.090286,56631.0,56630.0,0.02198467]
[1725938260386,0.090286,56631.0,56630.0,0.03598467]
[1725938262389,0.090286,56631.0,56630.0,0.027]
[1725938268097,0.090286,56631.0,56630.0,0.014]
[1725938268098,0.089286,56631.0,56630.0,0.014]
[1725938268396,0.090286,56631.0,56630.0,0.027]
[1725938268797,0.090286,56631.0,56630.0,0.026]
[1725938268993,0.090286,56631.0,56630.0,0.025]
[1725938269393,1.536618,56631.0,56630.0,0.025]
[1725938269592,1.585418,56631.0,56630.0,0.025]
[1725938269897,0.454658,56631.0,56630.0,0.012]
[1725938270097,0.985418,56631.0,56630.0,0.024]
[1725938270301,0.088303,56620.0,56616.0,0.0041]
[1725938270503,0.088303,56620.0,56614.0,0.3218]
[1725938270504,0.1408,56620.0,56614.0,0.01054011]
[1725938270694,0.0008,56615.0,56614.0,0.00886011]
[1725938270998,0.088309,56616.0,56611.0,0.088316]
[1725938271195,0.0008,56612.0,56611.0,0.14099605]
[1725938271390,0.0008,56612.0,56611.0,0.09721409]
[1725938272194,0.0008,56612.0,56610.0,0.0316611]
[1725938272497,0.0008,56611.0,56608.0,0.30786529]
[1725938272703,0.0008,56609.0,56608.0,0.30786529]
[1725938273102,0.0008,56609.0,56608.0,0.86900625]
[1725938274402,0.0008,56609.0,56608.0,1.46900625]
[1725938274602,0.0008,56609.0,56608.0,0.79848383]
[1725938275002,0.0018,56609.0,56608.0,0.79848383]
[1725938275605,0.0028,56609.0,56608.0,0.80348383]
[1725938276598,0.0028,56609.0,56608.0,0.97972872]
[1725938277396,0.0028,56609.0,56608.0,0.8915194]
[1725938277602,0.0028,56609.0,56608.0,0.97963706]
[1725938277802,0.0028,56609.0,56608.0,0.44967706]
[1725938278205,0.0028,56609.0,56608.0,0.39967706]
[1725938278602,0.0028,56609.0,56608.0,0.31176181]
[1725938279805,0.0008,56620.0,56619.0,0.088305]
[1725938280007,0.0041,56636.0,56634.0,0.08828]
[1725938280308,0.08828,56635.0,56633.0,0.09]
[1725938280506,0.0008,56634.0,56633.0,0.09]
[1725938281711,0.103081,56634.0,56633.0,0.09]
[1725938282105,0.103081,56634.0,56631.0,0.088286]
[1725938282305,0.0008,56632.0,56631.0,0.088286]
[1725938282505,0.0008,56632.0,56631.0,0.17263205]
[1725938284513,0.0148,56632.0,56631.0,0.17263205]
[1725938284716,0.0148,56632.0,56631.0,0.11983531]
[1725938285213,0.0288,56632.0,56631.0,0.12083531]
[1725938285718,0.0188,56632.0,56631.0,1.25059531]
[1725938286016,0.0188,56632.0,56631.0,1.33860516]
[1725938286206,0.093056,56650.0,56645.0,0.088264]
[1725938286405,0.14,56653.0,56641.0,0.19280143]
[1725938286406,0.00092,56649.0,56641.0,0.19280143]
[1725938286608,0.183056,56651.0,56646.0,0.088262]
[1725938286908,0.0948,56651.0,56646.0,0.14]
[1725938287107,0.0948,56651.0,56646.0,0.228262]
[1725938287307,0.0948,56651.0,56645.0,0.05280143]
[1725938287508,0.0004,56646.0,56643.0,0.05280143]
[1725938287807,0.0004,56646.0,56645.0,0.088263]
[1725938289518,0.0024,56646.0,56645.0,0.088263]
[1725938290918,0.0054,56646.0,56636.0,0.14517943]
[1725938291222,0.093664,56646.0,56641.0,0.08827]
[1725938291816,0.0054,56646.0,56641.0,0.05280143]
[1725938292116,0.0054,56646.0,56643.0,0.088266]
[1725938292318,0.093663,56646.0,56641.0,0.05280143]
[1725938292519,0.091663,56646.0,56641.0,0.05280143]
[1725938292718,0.0004,56642.0,56641.0,0.05280143]
[1725938292934,0.0004,56642.0,56641.0,0.19280143]
[1725938293224,0.0004,56646.0,56641.0,1.27164]
[1725938293519,0.0004,56646.0,56645.0,0.1404]
[1725938293718,0.0487,56657.0,56645.0,0.1404]
[1725938293917,0.0487,56657.0,56656.0,0.0004]
[1725938294310,0.0463,56663.0,56656.0,0.0004]
[1725938294511,0.43253127,56681.0,56661.0,0.088239]
[1725938294512,0.08823,56667.0,56661.0,0.088239]
[1725938294716,0.08823,56667.0,56666.0,0.0004]
[1725938294919,0.088222,56673.0,56666.0,0.0004]
[1725938295122,0.088222,56673.0,56672.0,0.0004]
[1725938297218,0.102222,56673.0,56672.0,0.0014]
[1725938297420,0.014,56673.0,56672.0,0.0014]
[1725938298022,0.014,56673.0,56672.0,0.0024]
[1725938298023,0.02,56673.0,56672.0,0.0024]
[1725938301618,0.16,56673.0,56672.0,0.0024]
[1725938302017,0.248221,56673.0,56672.0,0.0024]
[1725938302326,0.295421,56673.0,56672.0,0.0024]
[1725938303234,0.295421,56673.0,56663.0,0.05578199]
[1725938303235,0.088225,56671.0,56663.0,0.05578199]
[1725938303436,0.0004,56664.0,56663.0,0.14401799]
[1725938303937,0.0004,56664.0,56663.0,0.17533891]
[1725938304847,0.0034,56664.0,56663.0,0.17533891]
[1725938305347,0.0064,56664.0,56663.0,0.17533891]
[1725938307044,0.0064,56664.0,56663.0,0.31533891]
[1725938310041,0.088215,56677.0,56664.0,0.088233]
[1725938310349,0.0041,56674.0,56669.0,0.14]
[1725938310552,0.088215,56677.0,56673.0,0.088219]
[1725938310745,0.088215,56677.0,56676.0,0.0004]
[1725938311048,0.094,56679.0,56676.0,0.088616]
[1725938311251,0.094,56679.0,56678.0,0.0004]
[1725938311949,0.182211,56679.0,56678.0,0.0004]
[1725938313150,0.186211,56679.0,56678.0,0.0004]
[1725938313538,0.197211,56679.0,56678.0,0.0014]
[1725938313949,0.193211,56679.0,56678.0,0.0014]
[1725938314144,0.194211,56679.0,56678.0,0.0024]
[1725938315249,0.194211,56679.0,56678.0,0.03475748]
[1725938315553,0.194211,56679.0,56678.0,0.0024]
[1725938318052,0.27279275,56679.0,56678.0,0.0002967]
[1725938318855,0.27282173,56679.0,56678.0,0.0002967]
[1725938319362,0.27482173,56679.0,56678.0,0.0012967]
[1725938320149,0.27382173,56679.0,56678.0,0.001]
[1725938320464,0.40226262,56679.0,56678.0,0.002]
[1725938321160,0.39726262,56679.0,56678.0,0.001]
[1725938321364,0.493751,56679.0,56678.0,0.002]
[1725938321554,0.37031011,56679.0,56678.0,0.002]
[1725938322461,0.51138542,56679.0,56678.0,0.002]
[1725938323555,0.37031011,56679.0,56678.0,0.002]
[1725938324561,0.47495886,56679.0,56678.0,0.002]
[1725938324758,0.63366858,56679.0,56678.0,0.002]
[1725938325154,0.200211,56679.0,56678.0,0.002]
[1725938329258,0.288422,56679.0,56678.0,0.002]
[1725938329468,0.200211,56679.0,56678.0,0.002]
[1725938331273,0.018,56679.0,56678.0,0.14311509]
[1725938331464,0.018,56679.0,56678.0,0.090213]
[1725938331964,0.018,56679.0,56678.0,0.1604945]
[1725938332367,0.018,56679.0,56678.0,0.090213]
[1725938339771,0.106211,56679.0,56678.0,0.002]
[1725938340279,0.106211,56679.0,56678.0,0.05488401]
[1725938340477,0.244222,56679.0,56678.0,0.05488401]
[1725938340780,0.088216,56676.0,56675.0,0.0528876]
[1725938340965,0.176434,56675.0,56674.0,0.0528876]
[1725938341168,0.176834,56675.0,56674.0,0.0528876]
[1725938341467,0.176434,56675.0,56674.0,0.0528876]
[1725938341871,0.088219,56674.0,56673.0,0.0528876]
[1725938342181,0.088619,56674.0,56673.0,0.0528876]
[1725938343469,0.100619,56674.0,56673.0,0.001]
[1725938343678,0.104019,56674.0,56673.0,0.002]
[1725938343872,0.104019,56674.0,56673.0,0.0548876]
[1725938344674,0.104019,56674.0,56673.0,0.002]
[1725938347177,0.192238,56674.0,56673.0,0.002]
[1725938349179,0.192238,56674.0,56667.0,0.03526634]
[1725938349180,0.088224,56671.0,56667.0,0.0569384]
[1725938349376,0.088244,56658.0,56657.0,0.07462595]
[1725938349577,0.088244,56658.0,56654.0,0.15877595]
[1725938349578,0.088249,56655.0,56654.0,0.15877595]
[1725938349784,0.08825,56654.0,56652.0,0.07052595]
[1725938349986,0.08825,56654.0,56653.0,0.088252]
[1725938350486,0.08825,56654.0,56653.0,0.1586333]
[1725938350879,0.08825,56654.0,56653.0,0.088252]
[1725938351078,0.08825,56654.0,56653.0,0.15863297]
[1725938351478,0.08825,56654.0,56653.0,0.088252]
[1725938351673,0.088252,56653.0,56652.0,0.07038097]
[1725938351879,0.1404,56653.0,56652.0,0.05276679]
[1725938352081,0.088255,56651.0,56650.0,0.05276679]
[1725938352279,0.088655,56651.0,56650.0,0.05276679]
[1725938352472,0.088258,56649.0,56648.0,0.05276679]
[1725938352687,0.088658,56649.0,56648.0,0.05276679]
[1725938352884,0.088258,56649.0,56648.0,0.05276679]
[1725938353084,0.088258,56649.0,56648.0,0.14102579]
[1725938353292,0.088258,56649.0,56648.0,0.088259]
[1725938353480,0.088258,56649.0,56648.0,0.14097351]
[1725938353675,0.089258,56649.0,56648.0,0.14897351]
[1725938354681,0.089258,56649.0,56648.0,0.096259]
[1725938355480,0.088258,56649.0,56648.0,0.002]
[1725938356381,0.0481,56652.0,56648.0,0.001]
[1725938356686,0.136353,56652.0,56651.0,0.0004]
[1725938358193,0.139353,56652.0,56651.0,0.0004]
[1725938359491,0.142353,56652.0,56651.0,0.0004]
[1725938361291,0.143353,56652.0,56651.0,0.0004]
[1725938362487,0.144353,56652.0,56651.0,0.0004]
[1725938365393,0.17623678,56652.0,56651.0,0.0004]
[1725938365788,0.144353,56652.0,56651.0,0.0004]
[1725938368413,0.232606,56652.0,56651.0,0.0004]
[1725938368610,0.144353,56652.0,56651.0,0.0004]
[1725938369112,0.096253,56652.0,56651.0,0.0004]
[1725938374613,0.096253,56652.0,56651.0,0.05311451]
[1725938375515,0.096253,56652.0,56651.0,0.0004]
[1725938376219,0.184506,56652.0,56651.0,0.05322105]
[1725938376514,0.184506,56652.0,56651.0,0.0004]
[1725938377518,0.184506,56652.0,56651.0,0.05322105]
[1725938378518,0.184506,56652.0,56651.0,0.0004]
[1725938379822,0.184506,56652.0,56651.0,0.05333547]
[1725938380124,0.184506,56652.0,56651.0,0.0004]
[1725938381417,1.314066,56652.0,56651.0,0.05293688]
[1725938381614,1.314066,56652.0,56651.0,1e-06]
[1725938381816,1.402319,56652.0,56651.0,1e-06]
[1725938382411,0.088256,56650.0,56649.0,0.05293588]
[1725938382712,0.316912,56650.0,56649.0,0.05293588]
[1725938382916,1.446472,56650.0,56649.0,0.05293588]
[1725938383721,0.176516,56649.0,56648.0,0.05293588]
[1725938383922,0.176916,56649.0,56648.0,0.05293588]
[1725938384521,0.176522,56647.0,56646.0,8.8e-07]
[1725938384829,0.088273,56639.0,56638.0,0.10073081]
[1725938385029,0.088673,56639.0,56638.0,0.17546558]
[1725938385223,0.088273,56639.0,56638.0,0.17546558]
[1725938385424,0.088273,56639.0,56638.0,0.08800239]
[1725938385623,0.088273,56639.0,56638.0,0.09672001]
[1725938386126,0.089273,56639.0,56638.0,0.19772001]
[1725938386627,0.089273,56639.0,56638.0,0.10971762]
[1725938386821,0.090273,56639.0,56638.0,0.10971762]
[1725938387822,0.090273,56639.0,56638.0,0.19772001]
[1725938388022,0.090273,56639.0,56638.0,0.10971762]
[1725938388727,0.0041,56646.0,56638.0,0.101]
[1725938389027,0.088263,56646.0,56645.0,0.0004]
[1725938389224,0.088263,56646.0,56645.0,0.07089945]
[1725938389821,0.090263,56646.0,56645.0,0.07089945]
[1725938390427,0.089263,56646.0,56645.0,0.07089945]
[1725938391327,0.089263,56646.0,56645.0,0.0004]
[1725938391523,0.088263,56646.0,56645.0,0.0004]
[1725938391723,0.088263,56646.0,56645.0,0.0034]
[1725938395934,0.176526,56646.0,56645.0,0.0034]
[1725938398139,0.088263,56646.0,56645.0,0.0034]
[1725938400540,0.088263,56646.0,56645.0,0.07389945]
[1725938401230,0.176526,56646.0,56645.0,0.07389945]
[1725938401431,0.088263,56646.0,56645.0,0.07389945]
[1725938402438,0.088246,56657.0,56645.0,0.0034]
[1725938402737,0.088652,56653.0,56652.0,0.0004]
[1725938403337,0.176904,56653.0,56652.0,0.0004]
[1725938403633,0.176504,56653.0,56652.0,0.0004]
[1725938404943,0.181504,56653.0,56652.0,0.0004]
[1725938405741,0.186504,56653.0,56652.0,0.0004]
[1725938407539,0.29174951,56653.0,56652.0,0.0004]
[1725938409039,0.29349751,56653.0,56652.0,0.0004]
[1725938409234,0.188252,56653.0,56652.0,0.0004]
[1725938409431,0.276504,56653.0,56652.0,0.0004]
[1725938410540,0.38174951,56653.0,56652.0,0.0004]
[1725938410749,0.276504,56653.0,56652.0,5.724e-05]
[1725938411036,0.364756,56653.0,56652.0,5.724e-05]
[1725938411844,0.088267,56645.0,56644.0,0.088266]
[1725938412041,0.088667,56645.0,56644.0,0.088266]
[1725938413242,0.088667,56645.0,56644.0,0.092266]
[1725938413443,0.089667,56645.0,56644.0,0.093266]
[1725938415336,0.089667,56645.0,56644.0,0.005]
[1725938418243,0.0014,56645.0,56644.0,0.183266]
[1725938424150,0.0041,56653.0,56652.0,0.088253]
[1725938424454,0.0041,56661.0,56652.0,0.088253]
[1725938424455,0.088248,56656.0,56652.0,0.0004]
[1725938424759,0.088248,56656.0,56655.0,0.24919911]
[1725938425246,0.088248,56656.0,56655.0,0.24918073]
[1725938425451,0.088248,56656.0,56655.0,0.16093173]
[1725938425857,0.088248,56656.0,56655.0,0.07093173]
[1725938426157,0.096248,56656.0,56655.0,0.07093173]
[1725938426950,0.096248,56656.0,56655.0,0.0004]
[1725938427449,0.104248,56656.0,56655.0,0.0014]
[1725938430159,0.104248,56656.0,56655.0,0.0329793]
[1725938433050,0.104248,56656.0,56655.0,0.1212283]
[1725938433250,0.104248,56656.0,56655.0,0.28176003]
[1725938433662,0.104248,56656.0,56655.0,0.10351103]
[1725938434354,0.016,56656.0,56655.0,0.19176003]
[1725938435360,0.016,56656.0,56655.0,0.1212283]
[1725938435361,0.104247,56656.0,56655.0,0.1212283]
[1725938435859,0.104247,56656.0,56655.0,0.2112283]
[1725938438364,0.104247,56656.0,56655.0,0.28171483]
[1725938438562,0.104247,56656.0,56655.0,0.2112283]
[1725938439657,0.104247,56656.0,56655.0,0.1229793]
[1725938439970,0.192494,56656.0,56655.0,0.0329793]
[1725938440360,0.240994,56656.0,56655.0,0.0014]
[1725938441460,0.330994,56656.0,56655.0,0.0014]
[1725938442563,0.419241,56656.0,56655.0,0.0014]
[1725938442867,0.330994,56656.0,56655.0,0.0014]
[1725938450161,0.240994,56656.0,56655.0,0.0014]
[1725938454869,1.458761,56656.0,56655.0,1e-06]
[1725938455368,1.458761,56656.0,56645.0,0.0041]
[1725938455369,0.176526,56646.0,56645.0,0.0041]
[1725938455578,0.088267,56643.0,56641.0,0.39404585]
[1725938455768,0.088269,56642.0,56641.0,0.39228585]
[1725938456074,0.088269,56642.0,56641.0,0.3218]
[1725938456266,0.088269,56642.0,56641.0,0.39232069]
[1725938456667,0.088269,56642.0,56641.0,0.41007]
[1725938456863,0.088269,56642.0,56641.0,0.41207]
[1725938457172,0.088269,56642.0,56641.0,0.3238]
[1725938457375,0.089269,56642.0,56641.0,0.39430654]
[1725938457572,0.090269,56642.0,56641.0,0.40130654]
[1725938457773,0.178538,56642.0,56641.0,0.3308]
[1725938458669,0.178538,56642.0,56641.0,0.009]
[1725938461971,0.090269,56642.0,56641.0,0.009]
[1725938462273,0.14,56652.0,56641.0,0.009]
[1725938462274,0.088263,56647.0,56641.0,0.1828169]
[1725938462478,0.316538,56642.0,56641.0,0.009]
[1725938462976,0.846178,56642.0,56641.0,0.009]
[1725938463276,0.316538,56642.0,56641.0,0.009]
[1725938463479,0.176538,56642.0,56641.0,0.009]
[1725938464182,0.182538,56642.0,56641.0,0.007]
[1725938465373,0.088277,56637.0,56636.0,0.004]
[1725938465575,0.088677,56637.0,56636.0,0.004]
[1725938468272,0.1206867,56637.0,56636.0,0.004]
[1725938468782,0.1216867,56637.0,56636.0,0.004]
[1725938469380,0.1226867,56637.0,56636.0,0.004]
[1725938469590,0.1246867,56637.0,56636.0,0.004]
[1725938469980,0.092677,56637.0,56636.0,0.004]
[1725938475089,0.094677,56637.0,56636.0,0.004]
[1725938475882,0.096677,56637.0,56636.0,0.004]
[1725938480794,0.096677,56637.0,56636.0,0.16445809]
[1725938481687,0.096677,56637.0,56636.0,0.094]
[1725938482689,0.088268,56643.0,56636.0,0.094]
[1725938482894,0.088263,56646.0,56642.0,0.178668]
[1725938483090,0.088263,56646.0,56645.0,0.178664]
[1725938483402,0.088263,56646.0,56645.0,0.178264]
[1725938484095,0.088263,56646.0,56645.0,0.09]
[1725938485588,0.098263,56646.0,56645.0,0.12241823]
[1725938486192,0.088263,56646.0,56645.0,0.12341823]
[1725938487803,0.088263,56646.0,56645.0,0.03341823]
[1725938489195,0.088263,56646.0,56645.0,0.03241823]
[1725938489403,0.088263,56646.0,56643.0,0.0453]
[1725938489404,0.088265,56645.0,56643.0,0.0453]
[1725938489700,0.001,56646.0,56643.0,0.11576966]
[1725938489701,0.089066,56644.0,56643.0,0.11576966]
[1725938489900,0.089066,56644.0,56643.0,0.0453]
[1725938490198,0.089066,56644.0,56643.0,0.20576966]
[1725938490798,0.089066,56644.0,56643.0,0.23815476]
[1725938495118,0.089066,56644.0,56643.0,0.32642176]
[1725938495917,0.090066,56644.0,56643.0,0.32642176]
[1725938496416,0.091066,56644.0,56643.0,0.32642176]
[1725938501610,0.091066,56644.0,56643.0,0.2559521]
[1725938502005,0.0028,56644.0,56643.0,0.2559521]
[1725938508612,0.0018,56644.0,56643.0,0.2559521]
[1725938508813,0.0018,56644.0,56643.0,0.2589521]
[1725938509223,0.0018,56644.0,56643.0,0.2559521]
[1725938509520,0.0008,56644.0,56643.0,0.2609521]
[1725938510514,0.0008,56644.0,56643.0,0.43377031]
[1725938511412,0.0008,56644.0,56643.0,0.34558207]
[1725938514927,0.0008,56644.0,56643.0,0.34557418]
[1725938520026,0.0008,56644.0,56643.0,0.43376769]
[1725938521028,0.10510688,56666.0,56646.0,0.088263]
[1725938521229,0.08822,56674.0,56667.0,0.08823]
[1725938521230,0.228525,56671.0,56667.0,0.08823]
[1725938521532,0.183425,56671.0,56670.0,0.0904]
[1725938521732,0.183425,56671.0,56670.0,0.09]
[1725938522120,0.183425,56671.0,56670.0,0.16049425]
[1725938522634,0.197425,56671.0,56670.0,0.16049425]
[1725938522927,0.197425,56671.0,56670.0,0.09]
[1725938523132,0.183425,56671.0,56670.0,0.09]
[1725938523333,0.197425,56671.0,56670.0,0.091]
[1725938524032,0.210425,56671.0,56670.0,0.092]
[1725938524423,0.210425,56671.0,56670.0,0.002]
[1725938526227,0.1222,56671.0,56670.0,0.002]
[1725938526736,0.1222,56671.0,56670.0,0.090225]
[1725938529335,1.339784,56671.0,56670.0,0.002]
[1725938530235,1.428008,56671.0,56670.0,0.002]
[1725938531632,1.339784,56671.0,56670.0,0.002]
[1725938532632,0.739784,56671.0,56670.0,0.002]
[1725938535344,0.739784,56671.0,56670.0,0.00025351]
[1725938535537,0.828008,56671.0,56670.0,0.00025351]
[1725938535735,0.210424,56671.0,56670.0,0.00025351]
[1725938545661,0.088227,56669.0,56668.0,0.088228]
[1725938545839,0.088627,56669.0,56668.0,0.088228]
[1725938546844,0.100627,56669.0,56668.0,0.089228]
[1725938547250,0.110627,56669.0,56668.0,0.090228]
[1725938548443,0.110627,56669.0,56668.0,0.14300676]
[1725938549051,0.0224,56669.0,56668.0,0.14300676]
[1725938549244,0.0224,56669.0,56668.0,0.090228]
[1725938549549,0.0224,56669.0,56668.0,0.16072225]
[1725938550253,0.0224,56669.0,56668.0,0.090228]
[1725938551050,0.110627,56669.0,56668.0,0.090228]
[1725938553849,0.14217779,56669.0,56668.0,0.090228]
[1725938557365,0.24728467,56669.0,56668.0,0.090228]
[1725938558151,0.14217779,56669.0,56668.0,0.16072225]
[1725938558652,0.110627,56669.0,56668.0,0.16072225]
[1725938559157,0.110627,56669.0,56668.0,0.25078503]
[1725938559158,0.0224,56669.0,56668.0,0.25078503]
[1725938559357,0.0224,56669.0,56668.0,0.180228]
[1725938561255,0.0224,56669.0,56668.0,0.090228]
[1725938563056,0.110627,56669.0,56668.0,0.090228]
[1725938565056,0.0224,56669.0,56668.0,0.090228]
[1725938565356,0.0224,56669.0,56668.0,0.178456]
[1725938568464,0.0211,56669.0,56668.0,0.178456]
[1725938571171,0.0041,56677.0,56674.0,0.088219]
[1725938571467,0.088197,56689.0,56677.0,0.088214]
[1725938571468,0.10520033,56678.0,56677.0,0.088214]
[1725938571767,0.21509043,56684.0,56677.0,0.09]
[1725938571768,0.10520033,56682.0,56677.0,0.09]
[1725938571955,0.092301,56686.0,56682.0,0.09]
[1725938571956,0.10520033,56683.0,56682.0,0.09]
[1725938572156,0.10520033,56683.0,56682.0,0.0904]
[1725938572767,0.10520033,56683.0,56682.0,0.178607]
[1725938573155,0.10520033,56683.0,56682.0,0.179607]
[1725938573156,0.014,56683.0,56682.0,0.179607]
[1725938573465,0.014,56683.0,56682.0,0.23246917]
[1725938574057,0.016,56683.0,56682.0,0.23346917]
[1725938574657,0.016,56683.0,56682.0,0.180607]
[1725938576955,0.016,56683.0,56682.0,0.21267204]
[1725938579971,0.016,56683.0,56682.0,0.3714414]
[1725938580167,0.016,56683.0,56682.0,0.2832344]
[1725938580768,0.016,56683.0,56682.0,0.21267204]
[1725938580968,0.016,56683.0,56682.0,0.12267204]
[1725938581274,0.009,56683.0,56682.0,0.12267204]
[1725938584864,0.009,56683.0,56682.0,0.21267204]
[1725938586068,0.009,56683.0,56682.0,0.12267204]
[1725938586981,0.009,56683.0,56682.0,0.30087904]
[1725938587273,0.0041,56689.0,56688.0,0.266394]
[1725938587477,0.0934,56699.0,56688.0,0.266394]
[1725938587478,0.0041,56697.0,56696.0,0.088185]
[1725938587675,0.0934,56699.0,56698.0,0.088182]
[1725938587977,0.0941,56706.0,56699.0,0.088179]
[1725938587978,0.088173,56704.0,56699.0,0.088179]
[1725938588181,0.088173,56704.0,56703.0,0.0904]
[1725938588476,0.16744324,56704.0,56703.0,0.0004]
[1725938589668,0.17444324,56704.0,56703.0,0.0014]
[1725938590280,0.26261624,56704.0,56703.0,0.0014]
[1725938590580,0.17444324,56704.0,56703.0,0.0014]
[1725938590880,0.17444324,56704.0,56703.0,0.0024]
[1725938591378,0.007,56704.0,56703.0,0.0024]
[1725938591674,0.007,56704.0,56703.0,0.090574]
[1725938592679,0.11181081,56704.0,56703.0,0.090574]
[1725938593475,0.007,56704.0,56703.0,0.090574]
[1725938593871,0.007,56704.0,56703.0,0.12311948]
[1725938594677,0.007,56704.0,56703.0,0.0024]
[1725938594882,0.095172,56704.0,56703.0,0.0024]
[1725938604682,0.17495751,56704.0,56703.0,0.0024]
[1725938605282,0.095172,56704.0,56703.0,0.0024]
[1725938605490,0.17495791,56704.0,56703.0,0.0024]
[1725938605683,0.26312991,56704.0,56703.0,0.0024]
[1725938606485,0.40312991,56704.0,56703.0,0.0024]
[1725938607177,0.61847339,56704.0,56703.0,0.00027006]
[1725938607376,0.49568696,56704.0,56703.0,0.00027006]
[1725938610295,0.323344,56704.0,56703.0,0.00027006]
[1725938612292,0.273344,56704.0,56703.0,0.00027006]
[1725938614088,1.490596,56704.0,56703.0,0.00027006]
[1725938615596,0.176378,56693.0,56692.0,0.0041]
[1725938615794,0.176378,56693.0,56688.0,0.05275545]
[1725938615795,0.176392,56689.0,56688.0,0.05275545]
[1725938616094,0.176392,56689.0,56681.0,0.05435545]
[1725938616095,0.6696,56689.0,56681.0,0.05435545]
[1725938616298,0.6696,56689.0,56680.0,0.05275545]
[1725938616299,0.0004,56682.0,56680.0,0.05275545]
[1725938616495,0.1404,56681.0,56678.0,0.05275545]
[1725938616797,0.0004,56679.0,56678.0,0.05275545]
[1725938617000,0.14,56681.0,56678.0,0.05275545]
[1725938617198,0.14,56681.0,56677.0,0.05275545]
[1725938617386,0.14,56681.0,56675.0,0.05275545]
[1725938617387,0.088216,56676.0,56675.0,0.05275545]
[1725938617590,0.088216,56676.0,56674.0,0.0461]
[1725938617591,0.088217,56675.0,56674.0,0.0461]
[1725938617898,0.088617,56675.0,56674.0,0.0461]
[1725938618095,0.088217,56675.0,56674.0,0.0461]
[1725938619002,0.088217,56675.0,56674.0,0.0511]
[1725938620196,0.088217,56675.0,56674.0,0.0551]
[1725938620801,0.176434,56675.0,56674.0,0.0551]
[1725938621001,0.176434,56675.0,56674.0,0.009]
[1725938621995,0.088217,56675.0,56674.0,0.009]
[1725938627101,0.176434,56675.0,56674.0,0.009]
[1725938627703,0.088217,56675.0,56674.0,0.009]
[1725938629000,0.11995714,56675.0,56674.0,0.009]
[1725938636208,0.20995714,56675.0,56674.0,0.009]
[1725938645618,0.29817414,56675.0,56674.0,0.009]
[1725938645821,0.20995714,56675.0,56674.0,0.009]
[1725938648706,0.29817414,56675.0,56674.0,0.009]
[1725938656318,0.20995714,56675.0,56674.0,0.009]
[1725938656520,0.29817414,56675.0,56674.0,0.009]
[1725938657228,0.20995714,56675.0,56674.0,0.009]